fUSD/lending_fUSD_20260514
["ID","MTS","AMOUNT","RATE_DAILY","PERIOD"]
[422227217,1778736638000,-500.0,0.00013699,2]
[422227204,1778736638000,-500.0,0.00013699,2]
[422227211,1778736638000,-500.0,0.00013699,2]
[422227196,1778736638000,-500.0,0.00013699,2]
[422227198,1778736638000,-500.0,0.00013699,2]
[422227206,1778736638000,-500.0,0.00013699,2]
[422227223,1778736638000,-500.0,0.00013699,2]
[422227200,1778736638000,-500.0,0.00013699,2]
[422227213,1778736638000,-500.0,0.00013699,2]
[422227186,1778736638000,-500.0,0.00013699,2]
[422227189,1778736638000,-500.0,0.00013699,2]
[422227183,1778736638000,-500.0,0.00013699,2]
[422227181,1778736638000,-500.0,0.00013699,2]
[422227190,1778736638000,-500.0,0.00013699,2]
[422227185,1778736638000,-500.0,0.00013699,2]
[422227191,1778736638000,-500.0,0.00013699,2]
[422227188,1778736638000,-500.0,0.00013699,2]
[422227208,1778736638000,-500.0,0.00013699,2]
[422227202,1778736638000,-500.0,0.00013699,2]
[422227215,1778736638000,-500.0,0.00013699,2]
[422227187,1778736638000,-500.0,0.00013699,2]
[422227313,1778736639000,-508.7088256,0.00013799,2]
[422227309,1778736639000,-500.0,0.00013799,2]
[422227305,1778736639000,-151.0,0.00013797,2]
[422227299,1778736639000,-300.0,0.0001378,2]
[422227291,1778736639000,-150.0,0.00013702,2]
[422227301,1778736639000,-601.0,0.00013781,2]
[422227297,1778736639000,-10116.33413619,0.00013744,2]
[422227296,1778736639000,-8873.21353313,0.00013744,2]
[422227293,1778736639000,-152.0,0.00013733,3]
[422227288,1778736639000,-3828.2755,0.000137,2]
[422227303,1778736639000,-44207.0,0.00013781,2]
[422227307,1778736639000,-500.0,0.00013799,2]
[422227335,1778736639000,-500.0,0.00013799,2]
[422227329,1778736639000,-500.0,0.00013799,2]
[422227319,1778736639000,-500.0,0.00013799,2]
[422227333,1778736639000,-500.0,0.00013799,2]
[422227321,1778736639000,-500.0,0.00013799,2]
[422227317,1778736639000,-500.0,0.00013799,2]
[422227331,1778736639000,-500.0,0.00013799,2]
[422227337,1778736639000,-476.18547741,0.00013799,2]
[422227323,1778736639000,-500.0,0.00013799,2]
[422227341,1778736639000,-500.0,0.00013799,2]
[422227325,1778736639000,-500.0,0.00013799,2]
[422227282,1778736639000,-500.0,0.00013699,2]
[422227327,1778736639000,-300.0,0.00013799,2]
[422227315,1778736639000,-500.0,0.00013799,2]
[422227280,1778736639000,-500.0,0.00013699,2]
[422227262,1778736639000,-500.0,0.00013699,2]
[422227289,1778736639000,-9700.0,0.000137,5]
[422227339,1778736639000,-300.0,0.00013799,2]
[422227239,1778736639000,-500.0,0.00013699,2]
[422227243,1778736639000,-500.0,0.00013699,2]
[422227237,1778736639000,-500.0,0.00013699,2]
[422227235,1778736639000,-500.0,0.00013699,2]
[422227241,1778736639000,-500.0,0.00013699,2]
[422227245,1778736639000,-500.0,0.00013699,2]
[422227247,1778736639000,-500.0,0.00013699,2]
[422227252,1778736639000,-500.0,0.00013699,2]
[422227253,1778736639000,-500.0,0.00013699,2]
[422227250,1778736639000,-500.0,0.00013699,2]
[422227256,1778736639000,-500.0,0.00013699,2]
[422227284,1778736639000,-1227004.87154218,0.000137,2]
[422227258,1778736639000,-500.0,0.00013699,2]
[422227264,1778736639000,-500.0,0.00013699,2]
[422227266,1778736639000,-500.0,0.00013699,2]
[422227267,1778736639000,-500.0,0.00013699,2]
[422227270,1778736639000,-500.0,0.00013699,2]
[422227268,1778736639000,-500.0,0.00013699,2]
[422227269,1778736639000,-500.0,0.00013699,2]
[422227271,1778736639000,-500.0,0.00013699,2]
[422227274,1778736639000,-500.0,0.00013699,2]
[422227272,1778736639000,-500.0,0.00013699,2]
[422227276,1778736639000,-500.0,0.00013699,2]
[422227286,1778736639000,-165.27,0.000137,2]
[422227278,1778736639000,-500.0,0.00013699,2]
[422227260,1778736639000,-500.0,0.00013699,2]
[422227355,1778736639000,-2000.0,0.00013806,2]
[422227311,1778736639000,-512.14862258,0.00013799,2]
[422227343,1778736639000,-500.0,0.00013799,2]
[422227426,1778736639000,-725.89560884,0.0001425,2]
[422227428,1778736639000,-466.33713075,0.0001425,2]
[422227419,1778736639000,-150.0,0.00014237,2]
[422227424,1778736639000,-150.0,0.00014237,2]
[422227433,1778736639000,-8873.21353313,0.00014322,2]
[422227421,1778736639000,-150.0,0.00014237,2]
[422227417,1778736639000,-749.0,0.00014178,2]
[422227430,1778736639000,-995.33,0.00014314,2]
[422227435,1778736639000,-10116.33413619,0.00014322,2]
[422227437,1778736639000,-350.0,0.00014342,2]
[422227449,1778736639000,-500.0,0.0001445,2]
[422227439,1778736639000,-150.0,0.00014344,2]
[422227407,1778736639000,-10116.33413619,0.00014178,2]
[422227453,1778736639000,-637.10892931,0.00014451,2]
[422227443,1778736639000,-5531.0,0.000144,5]
[422227441,1778736639000,-158.11553461,0.00014362,2]
[422227457,1778736639000,-7210.0,0.00014463,7]
[422227447,1778736639000,-350.0,0.00014444,2]
[422227445,1778736639000,-350.0,0.00014421,3]
[422227459,1778736639000,-8873.21353313,0.00014466,2]
[422227461,1778736639000,-725.89560884,0.00014467,2]
[422227463,1778736639000,-10116.33413619,0.00014467,2]
[422227465,1778736639000,-187.16915046,0.0001448,2]
[422227467,1778736639000,-300.0,0.0001448,2]
[422227469,1778736639000,-300.0,0.0001448,2]
[422227357,1778736639000,-150.0,0.00013809,2]
[422227455,1778736639000,-150.0,0.00014451,2]
[422227403,1778736639000,-150.0,0.0001413,2]
[422227451,1778736639000,-500.0,0.0001445,2]
[422227398,1778736639000,-163.0,0.0001404,2]
[422227362,1778736639000,-160.0,0.00013826,2]
[422227405,1778736639000,-8873.21353313,0.00014177,2]
[422227360,1778736639000,-725.89560884,0.00013817,2]
[422227364,1778736639000,-151.0,0.00013829,2]
[422227352,1778736639000,-500.0,0.00013799,2]
[422227347,1778736639000,-500.0,0.00013799,2]
[422227349,1778736639000,-500.0,0.00013799,2]
[422227366,1778736639000,-150.0,0.00013862,2]
[422227353,1778736639000,-14600.0,0.000138,5]
[422227368,1778736639000,-8873.21353313,0.00013888,2]
[422227370,1778736639000,-10116.33413619,0.00013889,2]
[422227380,1778736639000,-161.80889739,0.00013906,2]
[422227371,1778736639000,-19500.0,0.000139,5]
[422227346,1778736639000,-500.0,0.00013799,2]
[422227390,1778736639000,-150.0,0.00014023,2]
[422227388,1778736639000,-995.33,0.00013988,2]
[422227384,1778736639000,-10000.0,0.00013977,2]
[422227382,1778736639000,-150.0,0.00013916,2]
[422227386,1778736639000,-150.0,0.00013987,2]
[422227401,1778736639000,-1996.92,0.000141,2]
[422227376,1778736639000,-161.80889739,0.00013906,2]
[422227378,1778736639000,-161.80889739,0.00013906,2]
[422227394,1778736639000,-725.89560884,0.00014033,2]
[422227392,1778736639000,-8873.21353313,0.00014033,2]
[422227396,1778736639000,-10116.33413619,0.00014033,2]
[422227374,1778736639000,-5531.0,0.000139,3]
[422227399,1778736639000,-11200.0413,0.00014077,2]
[422227562,1778736640000,-264.89014969,0.00014682,2]
[422227541,1778736640000,-500.0,0.00014682,2]
[422227564,1778736640000,-725.89560884,0.00014683,2]
[422227552,1778736640000,-500.0,0.00014682,2]
[422227549,1778736640000,-500.0,0.00014682,2]
[422227537,1778736640000,-500.0,0.00014682,2]
[422227543,1778736640000,-500.0,0.00014682,2]
[422227559,1778736640000,-500.0,0.00014682,2]
[422227557,1778736640000,-500.0,0.00014682,2]
[422227555,1778736640000,-500.0,0.00014682,2]
[422227566,1778736640000,-167.15336019,0.000147,2]
[422227546,1778736640000,-500.0,0.00014682,2]
[422227570,1778736640000,-1000.0,0.00014727,2]
[422227596,1778736640000,-252.0,0.00014784,2]
[422227572,1778736640000,-343.0,0.00014736,2]
[422227575,1778736640000,-343.0,0.00014739,2]
[422227577,1778736640000,-343.0,0.00014742,2]
[422227583,1778736640000,-8873.21353313,0.00014755,2]
[422227585,1778736640000,-10116.33413619,0.00014756,2]
[422227579,1778736640000,-1000.0,0.00014744,2]
[422227581,1778736640000,-343.0,0.00014748,2]
[422227587,1778736640000,-158.11553461,0.00014761,2]
[422227593,1778736640000,-343.0,0.0001478,2]
[422227591,1778736640000,-150.0,0.00014772,2]
[422227589,1778736640000,-343.0,0.00014761,2]
[422227600,1778736640000,-331.0,0.00014797,2]
[422227539,1778736640000,-500.0,0.00014682,2]
[422227568,1778736640000,-4800.0,0.000147,5]
[422227533,1778736640000,-500.0,0.00014682,2]
[422227483,1778736640000,-150.0,0.00014558,2]
[422227525,1778736640000,-500.0,0.00014682,2]
[422227477,1778736640000,-24400.0,0.000145,5]
[422227479,1778736640000,-9210.6,0.00014504,2]
[422227598,1778736640000,-343.0,0.00014786,2]
[422227481,1778736640000,-473.77523904,0.0001451,2]
[422227485,1778736640000,-713.3,0.00014562,2]
[422227471,1778736640000,-75502.97658632,0.00014481,2]
[422227489,1778736640000,-150.0,0.00014582,2]
[422227475,1778736640000,-150.0,0.00014487,2]
[422227473,1778736640000,-4907.19170556,0.00014481,2]
[422227487,1778736640000,-239.73246772,0.00014562,2]
[422227504,1778736640000,-150.0,0.00014612,2]
[422227502,1778736640000,-10116.33413619,0.00014611,2]
[422227506,1778736640000,-350.0,0.00014633,2]
[422227535,1778736640000,-500.0,0.00014682,2]
[422227491,1778736640000,-201.9544886,0.00014585,2]
[422227494,1778736640000,-350.0,0.00014598,2]
[422227508,1778736640000,-5024.36972956,0.0001465,2]
[422227510,1778736640000,-150.0,0.00014665,2]
[422227498,1778736640000,-4800.0,0.000146,5]
[422227513,1778736640000,-500.0,0.00014682,2]
[422227500,1778736640000,-8873.21353313,0.00014611,2]
[422227514,1778736640000,-500.0,0.00014682,2]
[422227517,1778736640000,-500.0,0.00014682,2]
[422227527,1778736640000,-500.0,0.00014682,2]
[422227519,1778736640000,-500.0,0.00014682,2]
[422227521,1778736640000,-500.0,0.00014682,2]
[422227523,1778736640000,-500.0,0.00014682,2]
[422227530,1778736640000,-500.0,0.00014682,2]
[422227496,1778736640000,-433.0,0.000146,2]
[422227602,1778736640000,-343.0,0.00014798,2]
[422227627,1778736640000,-286.98958,0.0001485,2]
[422227606,1778736640000,-331.0,0.00014802,2]
[422227656,1778736640000,-159.18616709,0.00014896,2]
[422227673,1778736640000,-2257.67,0.000149,2]
[422227675,1778736640000,-192.02289105,0.000149,2]
[422227677,1778736640000,-192.02289105,0.000149,2]
[422227689,1778736640000,-4800.0,0.000149,5]
[422227691,1778736640000,-8873.21353313,0.000149,2]
[422227684,1778736640000,-2018.0,0.000149,2]
[422227682,1778736640000,-2307.0,0.000149,5]
[422227686,1778736640000,-10116.33413619,0.000149,2]
[422227680,1778736640000,-725.89560884,0.000149,2]
[422227695,1778736640000,-4038.43640026,0.000149,2]
[422227699,1778736640000,-159.18616708,0.000149,2]
[422227693,1778736640000,-466.33713075,0.000149,2]
[422227671,1778736640000,-2566.0,0.000149,5]
[422227697,1778736640000,-255.7860261,0.000149,2]
[422227701,1778736640000,-331.0,0.00014912,2]
[422227706,1778736640000,-343.0,0.00014926,2]
[422227710,1778736640000,-343.0,0.00014944,2]
[422227708,1778736640000,-343.0,0.00014931,2]
[422227718,1778736640000,-343.0,0.00014955,2]
[422227720,1778736640000,-343.0,0.00014957,2]
[422227722,1778736640000,-169.0,0.00014959,2]
[422227712,1778736640000,-331.0,0.00014947,2]
[422227724,1778736640000,-156.72750518,0.00014961,2]
[422227714,1778736640000,-343.0,0.00014951,2]
[422227716,1778736640000,-1000.0,0.00014953,2]
[422227728,1778736640000,-153.62321047,0.00014986,2]
[422227726,1778736640000,-228.6383778,0.00014961,2]
[422227604,1778736640000,-4800.0,0.000148,5]
[422227669,1778736640000,-6643.51158342,0.000149,3]
[422227703,1778736640000,-343.0,0.00014923,2]
[422227652,1778736640000,-4038.43640026,0.00014896,2]
[422227658,1778736640000,-8890.76000022,0.00014896,2]
[422227612,1778736640000,-343.0,0.00014817,2]
[422227616,1778736640000,-541.72900382,0.00014817,2]
[422227613,1778736640000,-343.0,0.00014817,2]
[422227608,1778736640000,-343.0,0.00014805,2]
[422227610,1778736640000,-343.0,0.00014806,2]
[422227620,1778736640000,-343.0,0.00014836,2]
[422227622,1778736640000,-235.0,0.00014838,2]
[422227623,1778736640000,-331.0,0.00014849,2]
[422227625,1778736640000,-368.88443664,0.0001485,2]
[422227638,1778736640000,-1000.0,0.00014874,2]
[422227641,1778736640000,-150.0,0.00014879,2]
[422227639,1778736640000,-343.0,0.00014877,2]
[422227635,1778736640000,-343.0,0.00014869,2]
[422227617,1778736640000,-343.0,0.00014819,2]
[422227643,1778736640000,-1000.0,0.0001488,2]
[422227654,1778736640000,-255.78602612,0.00014896,2]
[422227636,1778736640000,-343.0,0.00014871,2]
[422227667,1778736640000,-300.0,0.00014899,2]
[422227665,1778736640000,-159.18616708,0.00014898,2]
[422227649,1778736640000,-343.0,0.00014893,2]
[422227662,1778736640000,-255.7860261,0.00014898,2]
[422227660,1778736640000,-4038.43640026,0.00014898,2]
[422227647,1778736640000,-343.0,0.00014886,2]
[422227634,1778736640000,-286.98959,0.0001486,2]
[422227645,1778736640000,-200.0,0.0001488,2]
[422227633,1778736640000,-196.0,0.00014856,2]
[422227631,1778736640000,-587.0,0.0001485,2]
[422227629,1778736640000,-286.98959,0.0001485,2]
[422227762,1778736641000,-151.0,0.00014996,2]
[422227778,1778736641000,-184.918819,0.00014996,2]
[422227768,1778736641000,-197.671785,0.00014996,2]
[422227774,1778736641000,-184.918819,0.00014996,2]
[422227766,1778736641000,-151.0,0.00014996,2]
[422227776,1778736641000,-184.918819,0.00014996,2]
[422227780,1778736641000,-184.918819,0.00014996,2]
[422227803,1778736641000,-2377.493607,0.00014996,2]
[422227799,1778736641000,-151.0,0.00014996,2]
[422227797,1778736641000,-357.156728,0.00014996,2]
[422227801,1778736641000,-2377.493607,0.00014996,2]
[422227795,1778736641000,-357.156728,0.00014996,2]
[422227784,1778736641000,-1167.106651,0.00014996,2]
[422227772,1778736641000,-151.0,0.00014996,2]
[422227782,1778736641000,-1167.106651,0.00014996,2]
[422227770,1778736641000,-151.0,0.00014996,2]
[422227732,1778736641000,-227.69260748,0.00014986,2]
[422227760,1778736641000,-180.979626,0.00014996,2]
[422227740,1778736641000,-320.16563944,0.0001499,2]
[422227730,1778736641000,-279.88135709,0.00014986,2]
[422227744,1778736641000,-500.0,0.00014995,2]
[422227742,1778736641000,-151.0,0.00014993,2]
[422227736,1778736641000,-278.33797665,0.00014986,2]
[422227746,1778736641000,-500.0,0.00014995,2]
[422227764,1778736641000,-151.0,0.00014996,2]
[422227734,1778736641000,-288.37111373,0.00014986,2]
[422227738,1778736641000,-320.16563944,0.0001499,2]
[422227750,1778736641000,-538.21187146,0.00014995,2]
[422227752,1778736641000,-300.0,0.00014995,2]
[422227754,1778736641000,-8364.2999211,0.00014996,2]
[422227756,1778736641000,-1148824.4763644,0.00014996,2]
[422227758,1778736641000,-151.0,0.00014996,2]
[422227748,1778736641000,-586.69929855,0.00014995,2]
[422227805,1778736641000,-2377.493607,0.00014996,2]
[422227790,1778736641000,-357.156728,0.00014996,2]
[422227788,1778736641000,-1167.106651,0.00014996,2]
[422227848,1778736641000,-171.0,0.00015,2]
[422227839,1778736641000,-8080.85641291,0.00015,2]
[422227854,1778736641000,-171.0,0.00015,2]
[422227850,1778736641000,-171.0,0.00015,2]
[422227852,1778736641000,-171.0,0.00015,2]
[422227844,1778736641000,-479.7,0.00015,2]
[422227837,1778736641000,-2531.12306646,0.00015,14]
[422227846,1778736641000,-171.0,0.00015,2]
[422227856,1778736641000,-174.22904171,0.00015,2]
[422227858,1778736641000,-3144764.35894584,0.00015,2]
[422227882,1778736641000,-500.0,0.00013904,2]
[422227885,1778736641000,-500.0,0.00013904,2]
[422227887,1778736641000,-600985.45912003,0.00015,2]
[422227786,1778736641000,-1167.106651,0.00014996,2]
[422227842,1778736641000,-1242530.71365503,0.00015,2]
[422227835,1778736641000,-2075.73057974,0.00015,2]
[422227833,1778736641000,-600679.74677507,0.00015,2]
[422227827,1778736641000,-150.0,0.00014999,2]
[422227792,1778736641000,-357.156728,0.00014996,2]
[422227809,1778736641000,-151.0,0.00014996,2]
[422227807,1778736641000,-2377.493607,0.00014996,2]
[422227815,1778736641000,-908.018583,0.00014996,2]
[422227812,1778736641000,-151.0,0.00014996,2]
[422227823,1778736641000,-151.0,0.00014997,2]
[422227819,1778736641000,-908.018583,0.00014996,2]
[422227821,1778736641000,-908.018583,0.00014996,2]
[422227817,1778736641000,-908.018583,0.00014996,2]
[422227825,1778736641000,-150.0,0.00014999,2]
[422227824,1778736641000,-300.0,0.00014999,2]
[422227826,1778736641000,-1233.176,0.00014999,2]
[422227811,1778736641000,-151.0,0.00014996,2]
[422227831,1778736641000,-1354.0,0.00014999,2]
[422227829,1778736641000,-3630.0,0.00014999,2]
[422228121,1778736643000,-167.15336019,0.000147,2]
[422228123,1778736643000,-142.28051543,0.00014898,2]
[422228182,1778736643000,-1014.21123152,0.00014898,2]
[422228125,1778736643000,-323.28396995,0.00014898,2]
[422228131,1778736643000,-7400.0,0.00014898,2]
[422228510,1778736646000,-646.08003612,0.000149,2]
[422228503,1778736646000,-649.71036066,0.000149,2]
[422228492,1778736646000,-906.04106482,0.000149,2]
[422228491,1778736646000,-5898.76571668,0.000149,2]
[422228488,1778736646000,-10.98428332,0.00014898,2]
[422229947,1778736682000,183.02,8.698e-05,2]
[422229946,1778736682000,183.02,8.332e-05,2]
[422229945,1778736682000,183.02,7.966e-05,2]
[422229944,1778736682000,84.754854,7.6e-05,2]
[422229943,1778736682000,98.265146,7.6e-05,2]
[422229942,1778736682000,183.02,7.234e-05,2]
[422229950,1778736683000,183.02,9.795e-05,2]
[422229949,1778736683000,183.02,9.429e-05,2]
[422229948,1778736683000,183.02,9.064e-05,2]
[422229952,1778737095000,152.0,0.00013595,7]
[422229953,1778737325000,5531.0,0.00012,5]
[422229956,1778737472000,156.01,6.513e-05,2]
[422229955,1778737472000,156.01,6.121e-05,2]
[422229963,1778737473000,156.01,9.257e-05,2]
[422229962,1778737473000,156.01,8.865e-05,2]
[422229961,1778737473000,156.01,8.473e-05,2]
[422229960,1778737473000,156.01,8.081e-05,2]
[422229959,1778737473000,156.01,7.689e-05,2]
[422229958,1778737473000,156.01,7.297e-05,2]
[422229957,1778737473000,156.01,6.905e-05,2]
[422229964,1778737474000,156.01,9.649e-05,2]
[422229965,1778737620000,-156.01,0.00010041,2]
[422229967,1778737620000,-160.1,0.00010192,2]
[422229969,1778737620000,-156.01,0.00010826,2]
[422229966,1778737620000,-250.0,0.00010117,2]
[422229972,1778737620000,-250.0,0.00011046,2]
[422229970,1778737620000,-751.26389848,0.00011046,2]
[422229971,1778737620000,-503.80426451,0.00011046,2]
[422229968,1778737620000,-156.01,0.00010434,2]
[422229975,1778737621000,-7304.78183701,0.00011886,2]
[422229973,1778737621000,-156.01,0.00011218,2]
[422229974,1778737621000,-156.01,0.0001161,2]
[422229977,1778737622000,-9700.0,0.00011886,2]
[422229976,1778737622000,-300.0,0.00011885,2]
[422229978,1778737623000,-10000.0,0.00011886,2]
[422229979,1778737624000,-10000.0,0.00011886,2]
[422229980,1778737632000,-10000.0,0.00011886,2]
[422229981,1778737633000,-10000.0,0.00011886,2]
[422229982,1778737634000,-10000.0,0.00011886,2]
[422229983,1778737634000,-10000.0,0.00011886,2]
[422229986,1778737635000,-10000.0,0.00011915,2]
[422229984,1778737635000,-4090.60816299,0.00011886,2]
[422229985,1778737635000,-5909.39183701,0.00011915,2]
[422229988,1778737636000,-10000.0,0.00011915,2]
[422229987,1778737636000,-10000.0,0.00011915,2]
[422229989,1778737637000,-6014.27816299,0.00011915,2]
[422229991,1778737686000,774.5979909,0.00011886,2]
[422229990,1778737686000,877.62179969,0.00011886,2]
[422229993,1778737694000,713.3,0.00011886,2]
[422229994,1778737694000,5000.0,0.00027397,120]
[422229992,1778737694000,239.73246772,0.00011886,2]
[422229995,1778737717000,-300.0,0.00011968,2]
[422229996,1778737717000,-9700.0,0.00011969,2]
[422229997,1778737750000,-6714.95,0.00011969,2]
[422229999,1778737773000,6334.79973319,0.00027397,120]
[422230025,1778737832000,-152.0,0.0001283,4]
[422230024,1778737832000,-180.97,0.0001274,2]
[422230030,1778737832000,-168.33435094,0.00012837,2]
[422230032,1778737832000,-150.0,0.00012892,2]
[422230033,1778737832000,-4142.47,0.00012893,2]
[422230034,1778737832000,-18973.68,0.00012893,2]
[422230031,1778737832000,-1186.55564906,0.00012837,2]
[422230035,1778737832000,-352.89,0.00012893,2]
[422230054,1778737832000,-2000.0,0.00013663,2]
[422230042,1778737832000,-252.78496863,0.00013224,2]
[422230041,1778737832000,-512.7,0.00013089,2]
[422230036,1778737832000,-150.99,0.00012893,2]
[422230039,1778737832000,-2261.97,0.00013029,2]
[422230040,1778737832000,-152.0,0.00013085,5]
[422230038,1778737832000,-1852.42,0.00012985,2]
[422230044,1778737832000,-152.0,0.0001334,6]
[422230027,1778737832000,-184.1,0.0001283,4]
[422230037,1778737832000,-9999.99,0.00012893,2]
[422230022,1778737832000,-2261.97,0.00012711,2]
[422230013,1778737832000,-200.0,0.00012274,2]
[422230026,1778737832000,-184.1,0.0001283,4]
[422230008,1778737832000,-160.0,0.00012143,2]
[422230005,1778737832000,-156.01,0.00012002,2]
[422230006,1778737832000,-150.0,0.00012032,2]
[422230007,1778737832000,-544.11,0.00012102,2]
[422230010,1778737832000,-353.8945,0.00012145,2]
[422230012,1778737832000,-166.39,0.00012232,2]
[422230015,1778737832000,-152.0,0.00012575,3]
[422230014,1778737832000,-166.24,0.00012428,2]
[422230011,1778737832000,-726.95170767,0.00012145,2]
[422230016,1778737832000,-1152.64,0.00012599,2]
[422230018,1778737832000,-1200.0,0.00012647,2]
[422230029,1778737832000,-184.1,0.0001283,4]
[422230017,1778737832000,-3022.0,0.00012632,2]
[422230028,1778737832000,-184.1,0.0001283,4]
[422230019,1778737832000,-300.0,0.00012647,2]
[422230020,1778737832000,-251.0,0.00012647,2]
[422230021,1778737832000,-5027.16,0.00012648,2]
[422230023,1778737832000,-500.0,0.00012735,2]
[422230055,1778737832000,-2261.97,0.00013665,2]
[422230009,1778737832000,-919.15379233,0.00012145,2]
[422230045,1778737832000,-2261.97,0.00013347,2]
[422230071,1778737832000,-500.0,0.00013799,2]
[422230081,1778737832000,-150.0,0.00013987,2]
[422230070,1778737832000,-500.0,0.00013799,2]
[422230073,1778737832000,-152.0,0.00013849,8]
[422230080,1778737832000,-2261.97,0.00013983,2]
[422230075,1778737832000,-500.0,0.00013904,2]
[422230076,1778737832000,-500.0,0.00013904,2]
[422230077,1778737832000,-1680.0,0.00013912,2]
[422230079,1778737832000,-500.0,0.00013973,2]
[422230074,1778737832000,-1185.7851,0.00013859,2]
[422230078,1778737832000,-2500.0,0.00013957,2]
[422230082,1778737832000,-250.0,0.00014,2]
[422230083,1778737832000,-255.0,0.00014001,2]
[422230086,1778737832000,-152.0,0.00014104,9]
[422230084,1778737832000,-500.0,0.00014056,2]
[422230085,1778737832000,-500.0,0.00014056,2]
[422230043,1778737832000,-199.8394,0.00013256,2]
[422230069,1778737832000,-150.0,0.00013737,2]
[422230064,1778737832000,-500.0,0.00013699,2]
[422230072,1778737832000,-497.7,0.00013799,2]
[422230068,1778737832000,-9125.754,0.000137,2]
[422230047,1778737832000,-72.82728717,0.00013488,2]
[422230046,1778737832000,-500.0,0.00013356,2]
[422230048,1778737832000,-80.7959233,0.00013488,2]
[422230050,1778737832000,-150.0,0.00013488,2]
[422230066,1778737832000,-500.0,0.00013699,2]
[422230053,1778737832000,-33147.836,0.000136,2]
[422230051,1778737832000,-150.0,0.00013488,2]
[422230052,1778737832000,-150.0,0.00013488,2]
[422230056,1778737832000,-200.0,0.00013699,2]
[422230049,1778737832000,-150.0,0.00013488,2]
[422230062,1778737832000,-500.0,0.00013699,2]
[422230063,1778737832000,-500.0,0.00013699,2]
[422230058,1778737832000,-500.0,0.00013699,2]
[422230065,1778737832000,-500.0,0.00013699,2]
[422230059,1778737832000,-538.21187146,0.00013699,2]
[422230061,1778737832000,-500.0,0.00013699,2]
[422230067,1778737832000,-637.10892931,0.00013699,2]
[422230060,1778737832000,-500.0,0.00013699,2]
[422230057,1778737832000,-500.0,0.00013699,2]
[422230096,1778737833000,-158.11553461,0.0001437,2]
[422230105,1778737833000,-473.77523904,0.0001451,2]
[422230089,1778737833000,-201.9544886,0.00014235,2]
[422230090,1778737833000,-150.0,0.00014237,2]
[422230094,1778737833000,-7500.0,0.000143,5]
[422230095,1778737833000,-152.0,0.00014359,10]
[422230091,1778737833000,-150.0,0.00014237,2]
[422230092,1778737833000,-423.57087373,0.00014247,2]
[422230088,1778737833000,-3700.0,0.000142,5]
[422230106,1778737833000,-183.0,0.00014582,2]
[422230087,1778737833000,-182.37606166,0.00014119,2]
[422230107,1778737833000,-2113.85736707,0.000146,5]
[422230093,1778737833000,-350.0,0.00014264,2]
[422230100,1778737833000,-166.24,0.00014479,2]
[422230097,1778737833000,-11300.0,0.000144,5]
[422230113,1778737833000,-824.83,0.000146,5]
[422230112,1778737833000,-5533.0,0.000146,5]
[422230111,1778737833000,-550.0611,0.000146,5]
[422230110,1778737833000,-339.375,0.000146,5]
[422230108,1778737833000,-1254.41808677,0.000146,5]
[422230109,1778737833000,-348.50366075,0.000146,5]
[422230103,1778737833000,-15000.0,0.000145,5]
[422230101,1778737833000,-150.0,0.00014487,2]